bitfinex/quotes_BTCUSD_20251009
["timestamp","ask_amount","ask_price","bid_price","bid_amount"]
[1760044857291,0.48413202,121460.0,121450.0,0.02886]
[1760044857433,0.48413202,121460.0,121450.0,0.05161]
[1760044859711,0.85552894,121460.0,121450.0,0.02886]
[1760044859919,0.85552894,121460.0,121450.0,0.01375]
[1760044860480,0.85552894,121460.0,121450.0,0.02886]
[1760044862109,0.55497066,121460.0,121450.0,0.02886]
[1760044862743,0.23665066,121460.0,121450.0,0.02886]
[1760044862874,0.16581202,121460.0,121450.0,0.02886]
[1760044863089,0.48413202,121460.0,121450.0,0.02886]
[1760044863300,0.48413202,121460.0,121450.0,0.05197]
[1760044864006,0.27928286,121460.0,121450.0,0.05197]
[1760044864195,0.44394612,121460.0,121450.0,0.05197]
[1760044865498,0.2531306,121460.0,121450.0,0.05197]
[1760044866774,0.48294326,121460.0,121450.0,0.05197]
[1760044868038,0.48298326,121460.0,121450.0,0.05197]
[1760044868550,0.53444246,121460.0,121450.0,0.02886]
[1760044869314,0.53444246,121460.0,121450.0,0.05197]
[1760044870530,0.48298326,121460.0,121450.0,0.05197]
[1760044877204,0.48294326,121460.0,121450.0,0.05197]
[1760044890906,0.16466326,121460.0,121450.0,0.05197]
[1760044891045,0.39734326,121460.0,121450.0,0.21664682]
[1760044891463,0.39734326,121460.0,121450.0,0.05197]
[1760044891675,0.16466326,121460.0,121450.0,0.21664682]
[1760044891926,0.39730326,121460.0,121450.0,0.21664682]
[1760044895498,0.16466326,121460.0,121450.0,0.21664682]
[1760044895699,0.39730326,121460.0,121450.0,0.21664682]
[1760044896725,0.16466326,121460.0,121450.0,0.21664682]
[1760044896940,0.39730326,121460.0,121450.0,0.21664682]
[1760044901417,0.16466326,121460.0,121450.0,0.21664682]
[1760044901630,0.39730326,121460.0,121450.0,0.21664682]
[1760044903079,0.16466326,121460.0,121450.0,0.21664682]
[1760044903314,0.17286841,121480.0,121470.0,0.16463924]
[1760044903315,0.23304,121480.0,121470.0,0.16463924]
[1760044903545,0.23309032,121480.0,121470.0,0.17988924]
[1760044903765,0.23309032,121480.0,121470.0,0.21493924]
[1760044904408,0.23309032,121480.0,121470.0,0.23966112]
[1760044904620,0.23309032,121480.0,121470.0,0.21493924]
[1760044904900,0.23309032,121480.0,121470.0,0.21593924]
[1760044905113,0.23309032,121480.0,121470.0,0.21693924]
[1760044906602,0.23309032,121480.0,121470.0,0.24166112]
[1760044907493,5.032e-05,121480.0,121470.0,0.24166112]
[1760044907714,0.23305032,121480.0,121470.0,0.24166112]
[1760044908244,0.23305032,121480.0,121470.0,0.21693924]
[1760044908456,5.032e-05,121480.0,121470.0,0.21693924]
[1760044908659,0.23301032,121480.0,121470.0,0.21693924]
[1760044909075,0.2340385,121480.0,121470.0,0.21693924]
[1760044910094,0.2340385,121480.0,121470.0,0.24166112]
[1760044910318,0.2339985,121480.0,121470.0,0.24166112]
[1760044910770,0.0010785,121480.0,121470.0,0.24166112]
[1760044910930,0.2339985,121480.0,121470.0,0.24166112]
[1760044912145,0.0010785,121480.0,121470.0,0.24166112]
[1760044912344,0.2339985,121480.0,121470.0,0.24166112]
[1760044916388,0.2339985,121480.0,121470.0,0.24984811]
[1760044918113,0.0010785,121480.0,121470.0,0.24984811]
[1760044918422,0.2339185,121480.0,121470.0,0.24984811]
[1760044922198,0.2338785,121480.0,121470.0,0.24984811]
[1760044930651,0.2337985,121480.0,121470.0,0.24984811]
[1760044931063,0.0010785,121480.0,121470.0,0.24984811]
[1760044931281,0.2337585,121480.0,121470.0,0.24984811]
[1760044933564,0.0010785,121480.0,121470.0,0.24984811]
[1760044933707,0.2337185,121480.0,121470.0,0.24984811]
[1760044938552,0.0010785,121480.0,121470.0,0.24984811]
[1760044938760,0.2337185,121480.0,121470.0,0.24984811]
[1760044941388,0.0010785,121480.0,121470.0,0.58984811]
[1760044941598,0.0010785,121480.0,121470.0,0.67297017]
[1760044941820,0.0010785,121480.0,121470.0,0.90557017]
[1760044943362,0.0010785,121480.0,121470.0,0.70212207]
[1760044943574,0.0010785,121480.0,121470.0,0.93392207]
[1760044943787,0.0010785,121480.0,121470.0,0.93592207]
[1760044944002,0.0010785,121480.0,121470.0,0.70312207]
[1760044944221,0.0010785,121480.0,121470.0,0.93492207]
[1760044944434,0.0010785,121480.0,121470.0,0.93588207]
[1760044948775,0.0010785,121480.0,121470.0,0.70212207]
[1760044948996,0.0010785,121480.0,121470.0,0.93584207]
[1760044949754,0.0010785,121480.0,121470.0,0.70312207]
[1760044950165,0.0010785,121480.0,121470.0,0.93584207]
[1760044956826,4.76334944,121500.0,121490.0,0.1646226]
[1760044957042,4.76257378,121500.0,121490.0,0.24774466]
[1760044957246,4.76257378,121500.0,121490.0,0.29929466]
[1760044957683,4.76257378,121500.0,121490.0,0.32400872]
[1760044958212,4.76257378,121500.0,121490.0,0.32500872]
[1760044958393,4.76257378,121500.0,121490.0,0.32600872]
[1760044960752,4.76257378,121500.0,121490.0,0.38640646]
[1760044961178,4.99517378,121500.0,121490.0,0.38640646]
[1760044962498,4.99620171,121500.0,121490.0,0.38640646]
[1760044962895,4.76360171,121500.0,121490.0,0.38640646]
[1760044963105,4.99620171,121500.0,121490.0,0.38600656]
[1760044963984,4.76360171,121500.0,121490.0,0.38600656]
[1760044964196,4.99620171,121500.0,121490.0,0.38600656]
[1760044964739,4.76360171,121500.0,121490.0,0.38600656]
[1760044964946,4.99616171,121500.0,121490.0,0.38600656]
[1760044965277,4.76360171,121500.0,121490.0,0.38600656]
[1760044965513,4.76360171,121500.0,121490.0,0.61856656]
[1760044965942,4.76360171,121500.0,121490.0,0.95856656]
[1760044968001,4.76360171,121500.0,121490.0,0.61856656]
[1760044968392,4.76360171,121500.0,121490.0,0.95856656]
[1760044970363,4.76360171,121500.0,121490.0,0.95864656]
[1760044974932,4.76360171,121500.0,121490.0,0.95856656]
[1760044978916,4.76360171,121500.0,121490.0,0.72600656]
[1760044979159,4.76360171,121500.0,121490.0,0.95856656]
[1760044980504,4.99616171,121500.0,121490.0,0.95856656]
[1760044982172,4.76360171,121500.0,121490.0,0.95856656]
[1760044982353,4.99616171,121500.0,121490.0,0.95856656]
[1760044983970,4.76360171,121500.0,121490.0,0.95856656]
[1760044984949,4.76360171,121500.0,121490.0,0.95756656]
[1760044985148,4.76360171,121500.0,121490.0,0.95656656]
[1760044985333,4.76360171,121500.0,121490.0,0.95756656]
[1760044985532,4.76360171,121500.0,121490.0,0.95856656]
[1760044987255,4.76360171,121500.0,121490.0,0.98871846]
[1760044988124,4.76360171,121500.0,121490.0,1.07431846]
[1760044988269,4.76360171,121500.0,121490.0,1.07331846]
[1760044988481,4.76360171,121500.0,121490.0,1.07231846]
[1760044988683,4.76360171,121500.0,121490.0,1.07331846]
[1760044988957,4.76360171,121500.0,121490.0,1.07431846]
[1760044989083,4.76360171,121500.0,121490.0,1.07331846]
[1760044989084,4.2661566,121500.0,121490.0,1.07331846]
[1760044989289,4.16066207,121500.0,121490.0,1.09831845]
[1760044989541,4.13597516,121500.0,121490.0,1.01311845]
[1760044989748,4.11128825,121500.0,121490.0,0.78015845]
[1760044989948,4.08660134,121500.0,121490.0,1.01311845]
[1760044990162,4.06191443,121500.0,121490.0,1.09767845]
[1760044990394,4.03722752,121500.0,121490.0,1.09767845]
[1760044990605,3.9878537,121500.0,121490.0,1.09767845]
[1760044990868,3.96316679,121500.0,121490.0,1.09767845]
[1760044991034,3.93847988,121500.0,121490.0,1.09767845]
[1760044991244,3.40196785,121500.0,121490.0,1.09767845]
[1760044991586,3.37728094,121500.0,121490.0,0.87915844]
[1760044991721,3.32790712,121500.0,121490.0,1.19867844]
[1760044991923,3.30322021,121500.0,121490.0,1.19867844]
[1760044992147,3.2785333,121500.0,121490.0,1.19867844]
[1760044992349,3.25384639,121500.0,121490.0,1.19967844]
[1760044992553,2.83991226,121500.0,121490.0,1.19767844]
[1760044992753,2.76832585,121500.0,121490.0,1.19767844]
[1760044992958,2.76832585,121500.0,121490.0,0.88115844]
[1760044993124,2.76832585,121500.0,121490.0,1.20167844]
[1760044994100,2.76832585,121500.0,121490.0,0.88315844]
[1760044994312,2.76832585,121500.0,121490.0,1.04652656]
[1760044994521,2.76832585,121500.0,121490.0,0.72800656]
[1760044994732,2.76832585,121500.0,121490.0,1.07667846]
[1760044994951,2.76832585,121500.0,121490.0,1.07679846]
[1760044995420,2.76832585,121500.0,121490.0,0.84371846]
[1760044995628,2.76832585,121500.0,121490.0,1.07679846]
[1760044996180,2.76832585,121500.0,121490.0,0.75815846]
[1760044996428,2.76832585,121500.0,121490.0,0.99123846]
[1760045005955,2.76832585,121500.0,121490.0,0.41815846]
[1760045006094,2.76832585,121500.0,121490.0,0.65107846]
[1760045006291,2.76832585,121500.0,121490.0,0.99107846]
[1760045007945,2.76832585,121500.0,121490.0,0.75815846]
[1760045008148,2.76832585,121500.0,121490.0,0.99103846]
[1760045010140,2.76832585,121500.0,121490.0,0.96088656]
[1760045010345,2.76832585,121500.0,121490.0,0.72800656]
[1760045010566,2.76832585,121500.0,121490.0,0.96088656]
[1760045011850,2.76832585,121500.0,121490.0,0.95888656]
[1760045012279,2.76832585,121500.0,121490.0,0.96088656]
[1760045012523,2.76832585,121500.0,121490.0,0.95888656]
[1760045013128,2.76832585,121500.0,121490.0,0.96088656]
[1760045017583,2.76832585,121500.0,121490.0,0.96080656]
[1760045022345,3.00112585,121500.0,121490.0,0.72800656]
[1760045022522,3.00112585,121500.0,121490.0,0.96080656]
[1760045022920,3.00112585,121500.0,121490.0,0.56378386]
[1760045023120,2.76832585,121500.0,121490.0,0.72840646]
[1760045023314,3.00108585,121500.0,121490.0,0.72640646]
[1760045023675,3.00108585,121500.0,121490.0,0.72740646]
[1760045024344,3.00108585,121500.0,121490.0,0.72540646]
[1760045024645,3.00108585,121500.0,121490.0,0.72640646]
[1760045025430,3.1656949,121500.0,121490.0,0.3032844]
[1760045025632,3.1656949,121500.0,121490.0,0.1386618]
[1760045026084,3.20502136,121500.0,121490.0,0.1151118]
[1760045026574,3.20502136,121500.0,121490.0,0.02671406]
[1760045026746,3.1656949,121500.0,121490.0,0.02671406]
[1760045027376,3.1656949,121500.0,121490.0,0.02571406]
[1760045027641,3.56607797,121500.0,121490.0,0.001]
[1760045027890,3.56607797,121500.0,121490.0,0.002]
[1760045028290,3.56607797,121500.0,121490.0,0.001]
[1760045028466,0.1646226,121490.0,121480.0,0.02471956]
[1760045028680,0.3973826,121490.0,121480.0,0.02471956]
[1760045028873,0.4829426,121490.0,121480.0,0.02471956]
[1760045030070,0.4829426,121490.0,121480.0,0.02571956]
[1760045030272,0.4829426,121490.0,121480.0,0.001]
[1760045030451,0.5629394,121490.0,121480.0,0.001]
[1760045030881,0.5629394,121490.0,121480.0,0.002]
[1760045033962,0.56345341,121490.0,121480.0,0.002]
[1760045034564,0.64551648,121490.0,121480.0,0.002]
[1760045034778,0.96387648,121490.0,121480.0,0.002]
[1760045038821,0.64551648,121490.0,121480.0,0.002]
[1760045039024,0.64551648,121490.0,121460.0,0.56047945]
[1760045039025,0.1646497,121470.0,121460.0,0.56047945]
[1760045039231,0.3974097,121470.0,121460.0,0.57747945]
[1760045040306,0.2208555,121470.0,121460.0,0.03783313]
[1760045040518,0.4535755,121470.0,121460.0,0.01056313]
[1760045040961,0.4535755,121470.0,121460.0,0.00237425]
[1760045041666,0.4535755,121470.0,121460.0,0.00337425]
[1760045042337,0.5391755,121470.0,121460.0,0.00337425]
[1760045042794,0.5391755,121470.0,121460.0,0.00237425]
[1760045043044,1.02268063,121470.0,121460.0,0.00137425]
[1760045043273,1.02268063,121470.0,121460.0,0.00237425]
[1760045043509,1.02268063,121470.0,121460.0,0.00137425]
[1760045043510,0.62229756,121470.0,121460.0,0.00137425]
[1760045043975,0.62229756,121470.0,121460.0,0.00237425]
[1760045044216,1.02268063,121470.0,121460.0,0.00237425]
[1760045044431,1.02268063,121470.0,121460.0,0.00337425]
[1760045044882,1.02268063,121470.0,121460.0,0.00237425]
[1760045045328,1.02268063,121470.0,121460.0,0.00337425]
[1760045045994,0.53669756,121470.0,121460.0,0.00337425]
[1760045046203,0.62229756,121470.0,121460.0,0.00337425]
[1760045046923,0.30397756,121470.0,121460.0,0.00337425]
[1760045047098,0.70436063,121470.0,121460.0,0.00337425]
[1760045047271,1.038032,121470.0,121460.0,0.00337425]
[1760045048153,1.038032,121470.0,121460.0,0.00237425]
[1760045048901,1.038032,121470.0,121460.0,0.00137425]
[1760045049139,0.719712,121470.0,121460.0,0.00137425]
[1760045049337,1.038032,121470.0,121460.0,0.00137425]
[1760045049835,0.952432,121470.0,121460.0,0.00137425]
[1760045050200,0.719712,121470.0,121460.0,0.00137425]
[1760045050401,1.038032,121470.0,121460.0,0.00137425]
[1760045051098,0.16467682,121450.0,121440.0,0.51729716]
[1760045051264,0.39739682,121450.0,121440.0,0.54426132]
[1760045051472,0.39739682,121450.0,121440.0,0.57000132]
[1760045052269,0.39739682,121450.0,121440.0,0.57005164]
[1760045052473,0.39739682,121450.0,121440.0,0.57205164]
[1760045054074,0.20363437,121450.0,121440.0,0.57205164]
[1760045054254,0.36831119,121450.0,121440.0,0.57205164]
[1760045055212,0.38369032,121450.0,121440.0,0.57205164]
[1760045056320,0.39266032,121450.0,121440.0,0.57205164]
[1760045056546,0.38369032,121450.0,121440.0,0.57205164]
[1760045056750,0.38369032,121450.0,121440.0,0.40015728]
[1760045056963,0.38369032,121450.0,121440.0,0.56484766]
[1760045057400,0.47265712,121450.0,121440.0,0.03441728]
[1760045057612,0.47265712,121450.0,121440.0,0.19910766]
[1760045058264,0.47266485,121450.0,121440.0,0.03441728]
[1760045059845,0.77337442,121450.0,121440.0,0.02603312]
[1760045060058,0.77898442,121450.0,121440.0,0.00307887]
[1760045060462,0.69898762,121450.0,121440.0,0.00307887]
[1760045062323,0.78210968,121450.0,121440.0,0.00307887]
[1760045063402,0.78210968,121450.0,121440.0,0.00107887]
[1760045063606,0.78210968,121450.0,121440.0,0.00207887]
[1760045063813,0.78210968,121450.0,121440.0,0.00307887]
[1760045064032,0.86210648,121450.0,121440.0,0.00307887]
[1760045065693,1.19296795,121450.0,121440.0,0.00307887]
[1760045066275,1.21840972,121450.0,121440.0,0.00307887]
[1760045066462,1.02053791,121450.0,121440.0,0.00107887]
[1760045067714,1.01477535,121450.0,121440.0,0.00107887]
[1760045067924,1.67561535,121450.0,121440.0,0.00107887]
[1760045069012,1.01477535,121450.0,121440.0,0.00107887]
[1760045069242,1.67569535,121450.0,121440.0,0.00107887]
[1760045071543,1.24749535,121450.0,121440.0,0.00107887]
[1760045071745,1.67569535,121450.0,121440.0,0.00107887]
[1760045073252,1.45967535,121450.0,121440.0,0.00107887]
[1760045073477,0.27215574,121450.0,121440.0,0.00107887]
[1760045073692,0.59055574,121450.0,121440.0,0.01866887]
[1760045073907,0.27215574,121450.0,121440.0,0.01866887]
[1760045074350,0.89126531,121450.0,121440.0,0.01866887]
[1760045074578,0.57286531,121450.0,121440.0,0.01866887]
[1760045074791,0.80562531,121450.0,121440.0,0.01866887]
[1760045075000,0.89126531,121450.0,121440.0,0.00107887]
[1760045077123,0.57286531,121450.0,121440.0,0.00107887]
[1760045077357,0.56389531,121450.0,121440.0,0.03226887]
[1760045077575,0.18006368,121450.0,121440.0,0.05868887]
[1760045077809,0.01538686,121450.0,121440.0,0.22337925]
[1760045078023,0.39747682,121450.0,121440.0,0.22337925]
[1760045083486,0.39743682,121450.0,121440.0,0.22337925]
[1760045085415,0.16467682,121450.0,121440.0,0.22337925]
[1760045085631,0.39743682,121450.0,121440.0,0.22337925]
[1760045086975,0.16467682,121450.0,121440.0,0.22337925]
[1760045087187,0.39743682,121450.0,121440.0,0.22337925]
[1760045087394,0.16467682,121450.0,121440.0,0.22337925]
[1760045087600,0.39743682,121450.0,121440.0,0.22337925]
[1760045089486,0.16467682,121450.0,121440.0,0.22337925]
[1760045089690,0.39743682,121450.0,121440.0,0.22337925]
[1760045090422,0.16467682,121450.0,121440.0,0.22337925]
[1760045090598,0.39743682,121450.0,121440.0,0.22337925]
[1760045091007,0.16467682,121450.0,121440.0,0.22337925]
[1760045091232,0.39743682,121450.0,121440.0,0.22337925]
[1760045095241,0.16467682,121450.0,121440.0,0.22337925]
[1760045095386,0.39739682,121450.0,121440.0,0.22337925]
[1760045095752,0.39739682,121450.0,121440.0,0.22437925]
[1760045096608,0.39739682,121450.0,121440.0,0.22537925]
[1760045100830,0.16467682,121450.0,121440.0,0.22537925]
[1760045101040,0.39739682,121450.0,121440.0,0.22537925]
[1760045102745,0.40802682,121450.0,121440.0,0.03426887]
[1760045102970,0.39739682,121450.0,121440.0,0.19895925]
[1760045103191,0.39739682,121450.0,121440.0,0.22623925]
[1760045104210,0.39739682,121450.0,121440.0,0.06154887]
[1760045105374,0.39739682,121450.0,121440.0,0.22623925]
[1760045110946,0.39739682,121450.0,121440.0,0.00307887]
[1760045110947,0.79537319,121450.0,121440.0,0.00307887]
[1760045112172,0.79537319,121450.0,121440.0,0.00207887]
[1760045112385,0.79537319,121450.0,121440.0,0.00107887]
[1760045115523,0.89572022,121450.0,121440.0,0.00107887]
[1760045118049,0.97884228,121450.0,121440.0,0.00107887]
[1760045119773,0.77754691,121450.0,121440.0,0.00107887]
[1760045119994,0.94222373,121450.0,121440.0,0.00107887]
[1760045129818,0.97237563,121450.0,121440.0,0.00107887]
[1760045134077,0.77627418,121450.0,121440.0,0.00107887]
[1760045134293,1.09463418,121450.0,121440.0,0.00107887]
[1760045138639,1.00899418,121450.0,121440.0,0.00107887]
[1760045138844,1.09463418,121450.0,121440.0,0.00107887]
[1760045142019,0.77627418,121450.0,121440.0,0.00107887]
[1760045142256,1.09463418,121450.0,121440.0,0.00107887]
[1760045143316,0.77627418,121450.0,121440.0,0.00107887]
[1760045143493,1.09463418,121450.0,121440.0,0.00107887]
[1760045144200,0.77627418,121450.0,121440.0,0.00107887]
[1760045144413,1.09463418,121450.0,121440.0,0.00107887]
[1760045145962,0.77627418,121450.0,121440.0,0.00107887]
[1760045146186,1.09463418,121450.0,121440.0,0.00107887]
[1760045147030,0.69357758,121450.0,121440.0,0.00107887]
[1760045147273,1.09463418,121450.0,121440.0,0.00107887]
[1760045148011,0.77627418,121450.0,121440.0,0.00107887]
[1760045148227,0.38086078,121450.0,121440.0,0.00107887]
[1760045148420,1.01463738,121450.0,121440.0,0.00107887]
[1760045158467,0.69627738,121450.0,121440.0,0.00107887]
[1760045158662,1.01463738,121450.0,121440.0,0.00107887]
[1760045159091,0.61358078,121450.0,121440.0,0.00107887]
[1760045159314,1.09463418,121450.0,121440.0,0.00107887]
[1760045160842,0.77627418,121450.0,121440.0,0.00107887]
[1760045161062,1.09463418,121450.0,121440.0,0.00107887]
[1760045165799,1.01463738,121450.0,121440.0,0.00107887]
[1760045167645,1.00321646,121450.0,121440.0,0.00107887]
[1760045177651,1.54385624,121450.0,121440.0,0.00107887]
[1760045178061,1.56859037,121450.0,121440.0,0.00107887]
[1760045179872,1.59175163,121450.0,121440.0,0.00107887]
[1760045180098,1.67174843,121450.0,121440.0,0.00107887]
[1760045187216,0.67169525,121450.0,121440.0,0.00107887]
[1760045187429,1.93431163,121450.0,121440.0,0.00107887]
[1760045188062,1.93430873,121450.0,121440.0,0.00107887]
[1760045195411,1.93430873,121450.0,121390.0,0.07943503]
[1760045195412,0.16473107,121410.0,121390.0,0.07943503]
[1760045195626,1.16788308,121400.0,121390.0,0.06669871]
[1760045196278,1.19803498,121400.0,121390.0,0.00050368]
[1760045196715,0.87971498,121400.0,121390.0,0.00050368]
[1760045196921,1.13713891,121400.0,121390.0,0.00050368]
[1760045197127,1.30277571,121400.0,121390.0,0.00050368]
[1760045197547,1.30377571,121400.0,121390.0,0.00050368]
[1760045198889,1.30477571,121400.0,121390.0,0.00050368]
[1760045200594,0.98645571,121400.0,121390.0,0.00050368]
[1760045200811,0.5682267,121400.0,121390.0,0.05931368]
[1760045201045,0.5682267,121400.0,121390.0,0.03199368]
[1760045201258,0.86907489,121400.0,121390.0,0.03199368]
[1760045201486,0.86907489,121400.0,121390.0,0.03456633]
[1760045202290,0.94907169,121400.0,121390.0,0.01623633]
[1760045202496,0.94907169,121400.0,121390.0,0.00307633]
[1760045202894,0.55071489,121400.0,121390.0,0.00307633]
[1760045203113,0.86907489,121400.0,121390.0,0.00307633]
[1760045204194,0.55071489,121400.0,121390.0,0.00307633]
[1760045204423,0.86907489,121400.0,121390.0,0.00307633]
[1760045205100,0.5682267,121400.0,121390.0,0.00307633]
[1760045205327,0.94907169,121400.0,121390.0,0.00307633]
[1760045206119,0.63071169,121400.0,121390.0,0.00307633]
[1760045206338,0.5682267,121400.0,121390.0,0.00307633]
[1760045206547,0.86907489,121400.0,121390.0,0.00307633]
[1760045209303,0.55071489,121400.0,121390.0,0.00307633]
[1760045209724,0.86907489,121400.0,121390.0,0.00307633]
[1760045209912,0.78343489,121400.0,121390.0,0.00307633]
[1760045210127,0.94618981,121400.0,121390.0,0.00307633]
[1760045211893,0.86907489,121400.0,121390.0,0.00307633]
[1760045215724,0.86907489,121400.0,121390.0,0.00703033]
[1760045216147,0.86911489,121400.0,121390.0,0.00703033]
[1760045219811,0.5682667,121400.0,121390.0,0.02507033]
[1760045220022,0.86911489,121400.0,121390.0,0.00703033]
[1760045220257,0.6482635,121400.0,121390.0,0.00703033]
[1760045220483,0.94911169,121400.0,121390.0,0.00703033]
[1760045221139,0.6482635,121400.0,121390.0,0.00703033]
[1760045221366,0.94911169,121400.0,121390.0,0.00703033]
[1760045226251,0.78343489,121400.0,121390.0,0.00703033]
[1760045226458,0.86911489,121400.0,121390.0,0.00703033]
[1760045228828,0.2498667,121400.0,121390.0,0.00703033]
[1760045229026,0.86911489,121400.0,121390.0,0.02481033]
[1760045229346,0.002,121400.0,121390.0,0.20316854]
[1760045229565,0.002,121400.0,121390.0,0.22918854]
[1760045229566,0.39946464,121400.0,121390.0,0.22918854]
[1760045230021,0.23472,121400.0,121390.0,0.22918854]
[1760045231339,0.39946464,121400.0,121390.0,0.22918854]
[1760045232036,0.06234011,121400.0,121390.0,0.22918854]
[1760045232301,0.23272,121400.0,121390.0,0.22918854]
[1760045234188,0.18649268,121410.0,121400.0,0.16474464]
[1760045234439,0.41917268,121410.0,121400.0,0.22214464]
[1760045235449,0.41917268,121410.0,121400.0,0.22314464]
[1760045235647,0.41917268,121410.0,121400.0,0.22414464]
[1760045236615,0.18649268,121410.0,121400.0,0.22414464]
[1760045236841,0.41917268,121410.0,121400.0,0.22414464]
[1760045238106,0.39741107,121410.0,121400.0,0.22414464]
[1760045239740,0.39741107,121410.0,121400.0,0.22620259]
[1760045246467,0.23268,121410.0,121400.0,0.22620259]
[1760045250263,0.60961617,121430.0,121410.0,0.16473107]
[1760045250482,0.778366,121430.0,121420.0,0.03138]
[1760045250692,1.011006,121430.0,121420.0,0.0574]
[1760045250932,0.566106,121430.0,121420.0,0.0574]
[1760045252165,0.567106,121430.0,121420.0,0.0574]
[1760045252373,0.568106,121430.0,121420.0,0.0574]
[1760045252792,0.567106,121430.0,121420.0,0.0574]
[1760045253045,0.569106,121430.0,121420.0,0.0574]
[1760045255679,0.569106,121430.0,121420.0,0.06649044]
[1760045255886,0.569106,121430.0,121420.0,0.04047044]
[1760045257591,0.59452516,121430.0,121420.0,0.01462881]
[1760045257817,0.59452516,121430.0,121420.0,0.00102881]
[1760045258387,0.59452516,121430.0,121420.0,0.01909881]
[1760045258721,0.569106,121430.0,121420.0,0.01909881]
[1760045264677,0.569106,121430.0,121420.0,0.03157881]
[1760045268631,0.250826,121430.0,121420.0,0.03157881]
[1760045268828,0.569066,121430.0,121420.0,0.03157881]
[1760045269512,0.250826,121430.0,121420.0,0.03157881]
[1760045269779,0.569066,121430.0,121420.0,0.03157881]
[1760045270612,0.250826,121430.0,121420.0,0.03157881]
[1760045270835,0.569066,121430.0,121420.0,0.03157881]
[1760045277347,0.64326745,121430.0,121420.0,0.00102881]
[1760045280518,0.569066,121430.0,121420.0,0.00102881]
[1760045295006,0.250826,121430.0,121420.0,0.00102881]
[1760045295207,0.569026,121430.0,121420.0,0.00102881]
[1760045301986,0.86987545,121430.0,121420.0,0.00102881]
[1760045309547,1.20859768,121430.0,121420.0,1e-08]
[1760045309770,1.28859448,121430.0,121420.0,1e-08]
[1760045309982,1.30403639,121430.0,121420.0,1e-08]
[1760045310214,1.73349448,121430.0,121420.0,1e-08]
[1760045310668,1.74892841,121430.0,121420.0,1e-08]
[1760045312077,1.74892106,121430.0,121420.0,1e-08]
[1760045313145,1.74891856,121430.0,121420.0,1e-08]
[1760045315361,1.74889773,121430.0,121420.0,1e-08]
[1760045316128,1.73348463,121430.0,121420.0,1e-08]
[1760045318385,1.7334775,121430.0,121420.0,1e-08]
[1760045320052,1.7257736,121430.0,121420.0,1e-08]
[1760045322417,1.4075736,121430.0,121420.0,1e-08]
[1760045322870,2.0684536,121430.0,121420.0,1e-08]
[1760045323091,2.1884536,121430.0,121420.0,1e-08]
[1760045323595,2.19615567,121430.0,121420.0,1e-08]
[1760045323816,2.11051567,121430.0,121420.0,1e-08]
[1760045324061,2.19615567,121430.0,121420.0,1e-08]
[1760045325486,2.08283518,121430.0,121420.0,1e-08]
[1760045327071,2.00283838,121430.0,121420.0,1e-08]
[1760045328139,1.35736369,121430.0,121420.0,1e-08]
[1760045328351,2.01824369,121430.0,121420.0,1e-08]
[1760045330700,2.01824738,121430.0,121420.0,1e-08]
[1760045331297,2.0429858,121430.0,121420.0,1e-08]
[1760045331522,2.1229826,121430.0,121420.0,1e-08]
[1760045333107,2.1229842,121430.0,121420.0,1e-08]
[1760045336219,1.6946642,121430.0,121420.0,1e-08]
[1760045336430,2.1229842,121430.0,121420.0,1e-08]
[1760045337956,0.8604053,121430.0,121420.0,1e-08]
[1760045338237,1.6946642,121430.0,121420.0,1e-08]
[1760045338451,2.12300809,121430.0,121420.0,1e-08]
[1760045338641,1.92357904,121430.0,121420.0,1e-08]
[1760045338872,2.08828298,121430.0,121420.0,1e-08]
[1760045340321,1.57996618,121430.0,121420.0,1e-08]
[1760045340538,2.00828618,121430.0,121420.0,1e-08]
[1760045340756,2.00831638,121430.0,121420.0,1e-08]
[1760045341364,1.34743638,121430.0,121420.0,1e-08]
[1760045341577,1.04658693,121430.0,121420.0,1e-08]
[1760045341734,1.70746693,121430.0,121420.0,1e-08]
[1760045342160,1.04658693,121430.0,121420.0,1e-08]
[1760045342361,1.70746693,121430.0,121420.0,1e-08]
[1760045342581,1.03114242,121430.0,121420.0,1e-08]
[1760045342734,1.69202242,121430.0,121420.0,1e-08]
[1760045342935,1.68430017,121430.0,121420.0,1e-08]
[1760045343136,1.69202209,121430.0,121420.0,1e-08]
[1760045343653,1.68430017,121430.0,121420.0,1e-08]
[1760045343829,1.59866017,121430.0,121420.0,1e-08]
[1760045343984,1.68430017,121430.0,121420.0,1e-08]
[1760045346811,1.71792107,121430.0,121420.0,1e-08]
[1760045349373,1.74108684,121430.0,121420.0,1e-08]
[1760045349587,1.74108646,121430.0,121420.0,1e-08]
[1760045350437,2.04193591,121430.0,121420.0,1e-08]
[1760045352422,2.04193509,121430.0,121420.0,1e-08]
[1760045354382,2.04193484,121430.0,121420.0,1e-08]
[1760045356195,1.44023594,121430.0,121420.0,1e-08]
[1760045356408,2.04193484,121430.0,121420.0,1e-08]
[1760045361538,1.84151988,121430.0,121420.0,1e-08]
[1760045366059,1.80789898,121430.0,121420.0,1e-08]
[1760045366467,1.80789912,121430.0,121420.0,1e-08]
[1760045368470,1.8078999,121430.0,121420.0,1e-08]
[1760045370329,1.80790047,121430.0,121420.0,1e-08]
[1760045375322,1.80790099,121430.0,121420.0,1e-08]
[1760045376094,1.88789779,121430.0,121420.0,1e-08]
[1760045380528,1.80790099,121430.0,121420.0,1e-08]
[1760045381743,1.40661705,121430.0,121420.0,1e-08]
[1760045381956,1.80790099,121430.0,121420.0,1e-08]
[1760045387322,1.80790215,121430.0,121420.0,1e-08]
[1760045389594,1.40661821,121430.0,121420.0,1e-08]
[1760045389789,1.80790215,121430.0,121420.0,1e-08]
[1760045390035,1.88789931,121430.0,121420.0,1e-08]
[1760045390851,1.48661537,121430.0,121420.0,1e-08]
[1760045391109,1.88789931,121430.0,121420.0,1e-08]
[1760045393442,1.80790251,121430.0,121420.0,1e-08]
[1760045394129,1.80790289,121430.0,121420.0,1e-08]
[1760045397571,1.80782289,121430.0,121420.0,1e-08]
[1760045400793,1.80781889,121430.0,121420.0,1e-08]
[1760045404625,1.80009607,121430.0,121420.0,1e-08]
[1760045404828,1.80781658,121430.0,121420.0,1e-08]
[1760045405067,1.83261774,121430.0,121420.0,1e-08]
[1760045409257,1.80945582,121430.0,121420.0,1e-08]
[1760045409398,1.83261726,121430.0,121420.0,1e-08]
[1760045409798,1.80945582,121430.0,121420.0,1e-08]
[1760045410511,1.14865582,121430.0,121420.0,1e-08]
[1760045410733,1.80941582,121430.0,121420.0,1e-08]
[1760045411469,1.78461466,121430.0,121420.0,1e-08]
[1760045411682,1.79233513,121430.0,121420.0,1e-08]
[1760045412205,1.80777609,121430.0,121420.0,1e-08]
[1760045412426,1.10387584,121430.0,121420.0,1e-08]
[1760045412653,1.75691537,121430.0,121420.0,1e-08]
[1760045413097,1.10387645,121430.0,121420.0,1e-08]
[1760045413288,1.76463645,121430.0,121420.0,1e-08]
[1760045413447,1.76463642,121430.0,121420.0,1e-08]